[Event "Titled Tuesday Blitz May 2 Early 2023"]
[White "Jia, Haoxiang"]
[Black "Durarbayli, Vasif"]
[WhiteFideId "8602999"]
[BlackFideId "13402935"]
[WhiteElo "2331"]
[BlackElo "2551"]
[Result "1-0"]
[Round "03"]
[TimeControl "180+2"]
[Date "2023.05.02"]
[WhiteClock "0:01:14"]
[BlackClock "0:00:06"]

1. Nf3 {[%clk 0:03:00]}  c5 {[%clk 0:02:59]} 2. e4 {[%clk 0:02:59]}  d6 {[%clk 0:02:58]} 3. Bb5+ {[%clk 0:02:59]}  Nd7 {[%clk 0:02:58]} 4. O-O {[%clk 0:02:59]}  a6 {[%clk 0:02:58]} 5. Bd3 {[%clk 0:02:59]}  Ngf6 {[%clk 0:02:54]} 6. c3 {[%clk 0:02:59]}  b5 {[%clk 0:02:52]} 7. a4 {[%clk 0:02:57]}  c4 {[%clk 0:02:52]} 8. Bc2 {[%clk 0:02:57]}  Bb7 {[%clk 0:02:52]} 9. Re1 {[%clk 0:02:57]}  e6 {[%clk 0:02:51]} 10. d3 {[%clk 0:02:49]}  cxd3 {[%clk 0:02:51]} 11. Qxd3 {[%clk 0:02:47]}  Nc5 {[%clk 0:02:52]} 12. Qd4 {[%clk 0:02:46]}  e5 {[%clk 0:02:34]} 13. Qb4 {[%clk 0:02:43]}  d5 {[%clk 0:02:21]} 14. exd5 {[%clk 0:02:25]}  Nd3 {[%clk 0:02:17]} 15. Qh4 {[%clk 0:02:20]}  Nxe1 {[%clk 0:02:13]} 16. Nxe1 {[%clk 0:02:21]}  Nxd5 {[%clk 0:01:54]} 17. Qg3 {[%clk 0:02:16]}  Qc7 {[%clk 0:01:47]} 18. axb5 {[%clk 0:01:57]}  axb5 {[%clk 0:01:46]} 19. Rxa8+ {[%clk 0:01:58]}  Bxa8 {[%clk 0:01:47]} 20. Bd3 {[%clk 0:01:58]}  Bc6 {[%clk 0:01:44]} 21. Nd2 {[%clk 0:01:50]}  Nf4 {[%clk 0:01:38]} 22. Bf1 {[%clk 0:01:49]}  h5 {[%clk 0:01:36]} 23. Ndf3 {[%clk 0:01:44]}  b4 {[%clk 0:01:01]} 24. Qg5 {[%clk 0:01:37]}  f6 {[%clk 0:00:58]} 25. Qf5 {[%clk 0:01:35]}  Qd7 {[%clk 0:00:29]} 26. Qc2 {[%clk 0:01:33]}  bxc3 {[%clk 0:00:28]} 27. bxc3 {[%clk 0:01:30]}  Bc5 {[%clk 0:00:20]} 28. Bxf4 {[%clk 0:01:26]}  exf4 {[%clk 0:00:20]} 29. Qg6+ {[%clk 0:01:26]}  Qf7 {[%clk 0:00:19]} 30. Qf5 {[%clk 0:01:26]}  Bxf2+ {[%clk 0:00:07]} 31. Kxf2 {[%clk 0:01:25]}  O-O {[%clk 0:00:08]} 32. Qxf4 {[%clk 0:01:18]}  Bxf3 {[%clk 0:00:05]} 33. Nxf3 {[%clk 0:01:15]}  Ra8 {[%clk 0:00:06]} 34. Bc4 {[%clk 0:01:14]} 1-0


[Site "https://www.chess.com"]

[Event "Titled Tuesday Blitz May 2 Early 2023"]
[White "Tasev, Dejan"]
[Black "Bernadskiy, Vitaliy"]
[WhiteFideId "936618"]
[BlackFideId "14100371"]
[WhiteElo "2244"]
[BlackElo "2488"]
[Result "0-1"]
[Round "03"]
[TimeControl "180+2"]
[Date "2023.05.02"]
[WhiteClock "0:00:19"]
[BlackClock "0:00:03"]

1. e4 {[%clk 0:03:00]}  c5 {[%clk 0:02:54]} 2. Nf3 {[%clk 0:03:00]}  Nc6 {[%clk 0:02:52]} 3. Nc3 {[%clk 0:03:00]}  e6 {[%clk 0:02:51]} 4. g3 {[%clk 0:02:59]}  d6 {[%clk 0:02:49]} 5. Bg2 {[%clk 0:02:59]}  a6 {[%clk 0:02:49]} 6. O-O {[%clk 0:02:59]}  Be7 {[%clk 0:02:49]} 7. a4 {[%clk 0:02:59]}  Bd7 {[%clk 0:02:48]} 8. b3 {[%clk 0:02:59]}  Bf6 {[%clk 0:02:44]} 9. Bb2 {[%clk 0:02:58]}  Nge7 {[%clk 0:02:45]} 10. d3 {[%clk 0:02:56]}  O-O {[%clk 0:02:44]} 11. Qc1 {[%clk 0:02:55]}  Rc8 {[%clk 0:02:42]} 12. Ne2 {[%clk 0:02:54]}  Ng6 {[%clk 0:02:40]} 13. h4 {[%clk 0:02:48]}  h6 {[%clk 0:02:29]} 14. h5 {[%clk 0:02:42]}  Bxb2 {[%clk 0:02:28]} 15. Qxb2 {[%clk 0:02:42]}  Nge5 {[%clk 0:02:29]} 16. Nxe5 {[%clk 0:02:38]}  Nxe5 {[%clk 0:02:29]} 17. f4 {[%clk 0:02:30]}  Ng4 {[%clk 0:02:29]} 18. Qc1 {[%clk 0:02:26]}  f5 {[%clk 0:02:24]} 19. Bf3 {[%clk 0:02:22]}  Qe8 {[%clk 0:02:14]} 20. Kg2 {[%clk 0:02:10]}  Qxh5 {[%clk 0:02:10]} 21. Rh1 {[%clk 0:02:08]}  Qg6 {[%clk 0:02:10]} 22. Bxg4 {[%clk 0:02:06]}  Qxg4 {[%clk 0:02:10]} 23. Qd2 {[%clk 0:02:03]}  Bc6 {[%clk 0:02:04]} 24. Nc3 {[%clk 0:01:47]}  e5 {[%clk 0:01:41]} 25. Rh4 {[%clk 0:01:39]}  Qg6 {[%clk 0:01:40]} 26. fxe5 {[%clk 0:01:26]}  dxe5 {[%clk 0:01:38]} 27. Nd5 {[%clk 0:01:20]}  Bxd5 {[%clk 0:01:34]} 28. exd5 {[%clk 0:01:19]}  f4 {[%clk 0:01:34]} 29. Qf2 {[%clk 0:01:12]}  Rcd8 {[%clk 0:01:28]} 30. Kh2 {[%clk 0:00:55]}  fxg3+ {[%clk 0:01:18]} 31. Qxg3 {[%clk 0:00:55]}  Qxg3+ {[%clk 0:01:18]} 32. Kxg3 {[%clk 0:00:56]}  Rxd5 {[%clk 0:01:19]} 33. Re1 {[%clk 0:00:55]}  Rf5 {[%clk 0:01:15]} 34. Rhe4 {[%clk 0:00:54]}  Kf7 {[%clk 0:01:15]} 35. b4 {[%clk 0:00:51]}  b5 {[%clk 0:01:07]} 36. axb5 {[%clk 0:00:49]}  axb5 {[%clk 0:01:08]} 37. R1e3 {[%clk 0:00:46]}  cxb4 {[%clk 0:00:41]} 38. Rxb4 {[%clk 0:00:45]}  Rc5 {[%clk 0:00:41]} 39. Re2 {[%clk 0:00:39]}  h5 {[%clk 0:00:19]} 40. c4 {[%clk 0:00:34]}  bxc4 {[%clk 0:00:19]} 41. Rxc4 {[%clk 0:00:34]}  Rxc4 {[%clk 0:00:18]} 42. dxc4 {[%clk 0:00:35]}  Ke6 {[%clk 0:00:14]} 43. Rc2 {[%clk 0:00:33]}  g5 {[%clk 0:00:08]} 44. c5 {[%clk 0:00:33]}  Rf8 {[%clk 0:00:08]} 45. c6 {[%clk 0:00:33]}  Rc8 {[%clk 0:00:07]} 46. c7 {[%clk 0:00:34]}  Kd6 {[%clk 0:00:07]} 47. Rd2+ {[%clk 0:00:33]}  Kxc7 {[%clk 0:00:07]} 48. Rd5 {[%clk 0:00:34]}  Re8 {[%clk 0:00:07]} 49. Kf3 {[%clk 0:00:34]}  Kc6 {[%clk 0:00:07]} 50. Ra5 {[%clk 0:00:34]}  e4+ {[%clk 0:00:06]} 51. Ke3 {[%clk 0:00:34]}  Rg8 {[%clk 0:00:07]} 52. Kxe4 {[%clk 0:00:34]}  h4 {[%clk 0:00:07]} 53. Kf3 {[%clk 0:00:34]}  g4+ {[%clk 0:00:07]} 54. Kg2 {[%clk 0:00:34]}  Rd8 {[%clk 0:00:06]} 55. Ra6+ {[%clk 0:00:33]}  Kc5 {[%clk 0:00:05]} 56. Ra5+ {[%clk 0:00:33]}  Kb6 {[%clk 0:00:04]} 57. Ra2 {[%clk 0:00:33]}  Rd4 {[%clk 0:00:03]} 58. Rc2 {[%clk 0:00:33]}  Kb5 {[%clk 0:00:04]} 59. Re2 {[%clk 0:00:32]}  Kc4 {[%clk 0:00:03]} 60. Ra2 {[%clk 0:00:32]}  Kb3 {[%clk 0:00:04]} 61. Ra7 {[%clk 0:00:31]}  Rd2+ {[%clk 0:00:04]} 62. Kg1 {[%clk 0:00:31]}  h3 {[%clk 0:00:04]} 63. Rb7+ {[%clk 0:00:31]}  Kc3 {[%clk 0:00:03]} 64. Rc7+ {[%clk 0:00:32]}  Kb2 {[%clk 0:00:03]} 65. Rg7 {[%clk 0:00:32]}  Rg2+ {[%clk 0:00:03]} 66. Kh1 {[%clk 0:00:32]}  g3 {[%clk 0:00:02]} 67. Rb7+ {[%clk 0:00:30]}  Kc1 {[%clk 0:00:03]} 68. Rc7+ {[%clk 0:00:30]}  Rc2 {[%clk 0:00:02]} 69. Rg7 {[%clk 0:00:29]}  Rc3 {[%clk 0:00:01]} 70. Re7 {[%clk 0:00:26]}  g2+ {[%clk 0:00:02]} 71. Kh2 {[%clk 0:00:26]}  Kd2 {[%clk 0:00:03]} 72. Rg7 {[%clk 0:00:24]}  Re3 {[%clk 0:00:03]} 73. Ra7 {[%clk 0:00:23]}  Ke2 {[%clk 0:00:03]} 74. Rf7 {[%clk 0:00:22]}  Rf3 {[%clk 0:00:03]} 75. Ra7 {[%clk 0:00:21]}  Rf1 {[%clk 0:00:02]} 76. Rg7 {[%clk 0:00:19]}  Kf2 {[%clk 0:00:02]} 77. Rf7+ {[%clk 0:00:19]}  Ke3 {[%clk 0:00:03]} 78. Re7+ {[%clk 0:00:19]}  Kd2 {[%clk 0:00:03]} 79. Rd7+ {[%clk 0:00:19]}  Kc3 {[%clk 0:00:03]} 80. Rc7+ {[%clk 0:00:20]}  Kd4 {[%clk 0:00:03]} 81. Rd7+ {[%clk 0:00:19]}  Kc5 {[%clk 0:00:04]} 82. Rg7 {[%clk 0:00:19]}  Rh1+ {[%clk 0:00:03]} 0-1


[Site "https://www.chess.com"]

[Event "Titled Tuesday Blitz May 2 Early 2023"]
[White "Ohanyan, Emin"]
[Black "Novik, Maxim"]
[WhiteFideId "13312022"]
[BlackFideId "4102924"]
[WhiteElo "2402"]
[BlackElo "2287"]
[Result "0-1"]
[Round "03"]
[TimeControl "180+2"]
[Date "2023.05.02"]
[WhiteClock "0:00:01"]
[BlackClock "0:00:01"]

1. e4 {[%clk 0:03:00]}  c6 {[%clk 0:02:59]} 2. d4 {[%clk 0:02:58]}  d5 {[%clk 0:02:59]} 3. Nc3 {[%clk 0:02:59]}  dxe4 {[%clk 0:02:59]} 4. Nxe4 {[%clk 0:03:00]}  Bf5 {[%clk 0:03:00]} 5. Ng3 {[%clk 0:02:58]}  Bg6 {[%clk 0:03:00]} 6. h4 {[%clk 0:02:59]}  h6 {[%clk 0:03:00]} 7. Nf3 {[%clk 0:02:56]}  e6 {[%clk 0:03:01]} 8. Ne5 {[%clk 0:02:37]}  Bh7 {[%clk 0:02:59]} 9. Bd3 {[%clk 0:02:37]}  Bxd3 {[%clk 0:02:58]} 10. Qxd3 {[%clk 0:02:38]}  Nd7 {[%clk 0:02:59]} 11. f4 {[%clk 0:02:38]}  Be7 {[%clk 0:02:59]} 12. Bd2 {[%clk 0:02:37]}  Nxe5 {[%clk 0:02:55]} 13. fxe5 {[%clk 0:02:38]}  Bxh4 {[%clk 0:02:54]} 14. O-O-O {[%clk 0:02:38]}  Bxg3 {[%clk 0:02:54]} 15. Qxg3 {[%clk 0:02:38]}  Ne7 {[%clk 0:02:54]} 16. Qxg7 {[%clk 0:02:38]}  Rg8 {[%clk 0:02:54]} 17. Qh7 {[%clk 0:02:38]}  Qd5 {[%clk 0:02:45]} 18. Kb1 {[%clk 0:02:38]}  O-O-O {[%clk 0:02:07]} 19. Qxf7 {[%clk 0:02:21]}  Nf5 {[%clk 0:02:03]} 20. Bxh6 {[%clk 0:02:13]}  Rxg2 {[%clk 0:01:57]} 21. Bc1 {[%clk 0:02:03]}  Rg7 {[%clk 0:00:46]} 22. Qf6 {[%clk 0:02:01]}  Rdg8 {[%clk 0:00:39]} 23. b3 {[%clk 0:01:05]}  Qd7 {[%clk 0:00:39]} 24. Ba3 {[%clk 0:00:42]}  Rg6 {[%clk 0:00:33]} 25. Rh8 {[%clk 0:00:40]}  Qe8 {[%clk 0:00:22]} 26. Rxg8 {[%clk 0:00:22]}  Qxg8 {[%clk 0:00:22]} 27. Qf8+ {[%clk 0:00:19]}  Qxf8 {[%clk 0:00:22]} 28. Bxf8 {[%clk 0:00:20]}  Rg4 {[%clk 0:00:18]} 29. c3 {[%clk 0:00:20]}  Rg2 {[%clk 0:00:18]} 30. a4 {[%clk 0:00:16]}  b6 {[%clk 0:00:18]} 31. Rh1 {[%clk 0:00:12]}  Kb7 {[%clk 0:00:10]} 32. Rh7+ {[%clk 0:00:11]}  Ka6 {[%clk 0:00:10]} 33. Bd6 {[%clk 0:00:11]}  b5 {[%clk 0:00:05]} 34. Bc5 {[%clk 0:00:09]}  bxa4 {[%clk 0:00:05]} 35. bxa4 {[%clk 0:00:10]}  Rg7 {[%clk 0:00:05]} 36. Rh8 {[%clk 0:00:07]}  Ka5 {[%clk 0:00:04]} 37. Ra8 {[%clk 0:00:01]}  Kxa4 {[%clk 0:00:04]} 38. Kc2 {[%clk 0:00:01]}  Rg2+ {[%clk 0:00:04]} 39. Kd3 {[%clk 0:00:01]}  Rg3+ {[%clk 0:00:04]} 40. Kd2 {[%clk 0:00:00]}  Rg2+ {[%clk 0:00:04]} 41. Kd3 {[%clk 0:00:01]}  Rg3+ {[%clk 0:00:04]} 42. Kd2 {[%clk 0:00:02]}  Rg2+ {[%clk 0:00:04]} 43. Ke1 {[%clk 0:00:02]}  Kb3 {[%clk 0:00:04]} 44. Rxa7 {[%clk 0:00:02]}  Kxc3 {[%clk 0:00:04]} 45. Ra3+ {[%clk 0:00:03]}  Kc4 {[%clk 0:00:04]} 46. Kf1 {[%clk 0:00:02]}  Rc2 {[%clk 0:00:04]} 47. Ke1 {[%clk 0:00:02]}  Kd5 {[%clk 0:00:03]} 48. Kd1 {[%clk 0:00:01]}  Rg2 {[%clk 0:00:02]} 49. Ra4 {[%clk 0:00:00]}  Ke4 {[%clk 0:00:01]} 50. Kc1 {[%clk 0:00:01]}  Ne3 {[%clk 0:00:01]} 51. Kb1 {[%clk 0:00:01]}  Kd3 {[%clk 0:00:01]} 52. Ra3+ {[%clk 0:00:00]}  Ke4 {[%clk 0:00:01]} 53. Rb3 {[%clk 0:00:01]}  Nd5 {[%clk 0:00:01]} 54. Rb8 {[%clk 0:00:00]}  Kd3 {[%clk 0:00:01]} 55. Kc1 {[%clk 0:00:01]}  Nc3 {[%clk 0:00:01]} 0-1


[Site "https://www.chess.com"]

[Event "Titled Tuesday Blitz May 2 Early 2023"]
[White "Bacrot, Etienne"]
[Black "Ingebretsen, Jens E"]
[WhiteFideId "605506"]
[BlackFideId "1522965"]
[WhiteElo "2663"]
[BlackElo "2213"]
[Result "1/2-1/2"]
[Round "03"]
[TimeControl "180+2"]
[Date "2023.05.02"]
[WhiteClock "0:00:11"]
[BlackClock "0:00:14"]

1. e4 {[%clk 0:03:00]}  c5 {[%clk 0:02:57]} 2. Nf3 {[%clk 0:03:00]}  e6 {[%clk 0:02:58]} 3. b3 {[%clk 0:02:59]}  d5 {[%clk 0:02:58]} 4. exd5 {[%clk 0:02:52]}  exd5 {[%clk 0:02:58]} 5. Bb5+ {[%clk 0:02:52]}  Bd7 {[%clk 0:02:55]} 6. Qe2+ {[%clk 0:02:39]}  Qe7 {[%clk 0:02:48]} 7. Bxd7+ {[%clk 0:02:30]}  Nxd7 {[%clk 0:02:49]} 8. d4 {[%clk 0:02:21]}  Qxe2+ {[%clk 0:02:31]} 9. Kxe2 {[%clk 0:02:21]}  Ngf6 {[%clk 0:02:32]} 10. Re1 {[%clk 0:02:18]}  Ne4 {[%clk 0:01:35]} 11. Nbd2 {[%clk 0:01:51]}  Ndf6 {[%clk 0:01:32]} 12. Kf1 {[%clk 0:01:44]}  cxd4 {[%clk 0:01:21]} 13. Bb2 {[%clk 0:01:44]}  Bb4 {[%clk 0:01:18]} 14. Bxd4 {[%clk 0:01:21]}  O-O {[%clk 0:01:18]} 15. Bxf6 {[%clk 0:01:03]}  Bxd2 {[%clk 0:01:06]} 16. Red1 {[%clk 0:00:45]}  Rac8 {[%clk 0:00:27]} 17. Nxd2 {[%clk 0:00:25]}  Nxf6 {[%clk 0:00:27]} 18. Rac1 {[%clk 0:00:25]}  Rc3 {[%clk 0:00:26]} 19. Nb1 {[%clk 0:00:25]}  Rc5 {[%clk 0:00:25]} 20. f3 {[%clk 0:00:20]}  Rfc8 {[%clk 0:00:26]} 21. c3 {[%clk 0:00:20]}  a5 {[%clk 0:00:24]} 22. Rd4 {[%clk 0:00:19]}  b5 {[%clk 0:00:23]} 23. Rcd1 {[%clk 0:00:19]}  Kf8 {[%clk 0:00:23]} 24. Ke2 {[%clk 0:00:18]}  Ke7 {[%clk 0:00:23]} 25. Kd2 {[%clk 0:00:18]}  Ke6 {[%clk 0:00:23]} 26. Re1+ {[%clk 0:00:17]}  Kd6 {[%clk 0:00:24]} 27. Re3 {[%clk 0:00:18]}  h6 {[%clk 0:00:22]} 28. Na3 {[%clk 0:00:17]}  R8c7 {[%clk 0:00:17]} 29. Red3 {[%clk 0:00:12]}  Ke6 {[%clk 0:00:15]} 30. Re3+ {[%clk 0:00:07]}  Kd6 {[%clk 0:00:16]} 31. Rdd3 {[%clk 0:00:06]}  g6 {[%clk 0:00:15]} 32. Rd4 {[%clk 0:00:05]}  h5 {[%clk 0:00:15]} 33. h4 {[%clk 0:00:05]}  Re7 {[%clk 0:00:13]} 34. c4 {[%clk 0:00:05]}  Rxe3 {[%clk 0:00:13]} 35. Kxe3 {[%clk 0:00:05]}  bxc4 {[%clk 0:00:10]} 36. Nxc4+ {[%clk 0:00:05]}  Ke6 {[%clk 0:00:09]} 37. Nb2 {[%clk 0:00:05]}  Rc2 {[%clk 0:00:09]} 38. Rd2 {[%clk 0:00:06]}  Rc1 {[%clk 0:00:08]} 39. Nd3 {[%clk 0:00:05]}  Rg1 {[%clk 0:00:09]} 40. Kf2 {[%clk 0:00:05]}  Ra1 {[%clk 0:00:08]} 41. Rc2 {[%clk 0:00:04]}  Kd6 {[%clk 0:00:08]} 42. Ke3 {[%clk 0:00:04]}  Ne8 {[%clk 0:00:08]} 43. Nf2 {[%clk 0:00:02]}  Ng7 {[%clk 0:00:08]} 44. Kf4 {[%clk 0:00:02]}  Ne6+ {[%clk 0:00:08]} 45. Ke3 {[%clk 0:00:02]}  d4+ {[%clk 0:00:08]} 46. Kd3 {[%clk 0:00:03]}  Rg1 {[%clk 0:00:08]} 47. Ne4+ {[%clk 0:00:03]}  Kd5 {[%clk 0:00:08]} 48. g3 {[%clk 0:00:03]}  Rd1+ {[%clk 0:00:07]} 49. Ke2 {[%clk 0:00:03]}  Rh1 {[%clk 0:00:08]} 50. Rd2 {[%clk 0:00:03]}  Rh2+ {[%clk 0:00:08]} 51. Kd3 {[%clk 0:00:04]}  Rxd2+ {[%clk 0:00:07]} 52. Kxd2 {[%clk 0:00:04]}  Nc5 {[%clk 0:00:07]} 53. Nxc5 {[%clk 0:00:04]}  Kxc5 {[%clk 0:00:07]} 54. Kd3 {[%clk 0:00:05]}  Kb4 {[%clk 0:00:07]} 55. Kxd4 {[%clk 0:00:05]}  Ka3 {[%clk 0:00:08]} 56. Kc3 {[%clk 0:00:02]}  Kxa2 {[%clk 0:00:08]} 57. b4 {[%clk 0:00:03]}  axb4+ {[%clk 0:00:05]} 58. Kxb4 {[%clk 0:00:04]}  Kb2 {[%clk 0:00:06]} 59. Kc4 {[%clk 0:00:05]}  Kc2 {[%clk 0:00:06]} 60. Kd4 {[%clk 0:00:05]}  Kd2 {[%clk 0:00:07]} 61. Ke4 {[%clk 0:00:06]}  Ke2 {[%clk 0:00:07]} 62. g4 {[%clk 0:00:06]}  Kf2 {[%clk 0:00:06]} 63. Kf4 {[%clk 0:00:07]}  Kg2 {[%clk 0:00:07]} 64. gxh5 {[%clk 0:00:06]}  gxh5 {[%clk 0:00:07]} 65. Kg5 {[%clk 0:00:06]}  Kxf3 {[%clk 0:00:08]} 66. Kxh5 {[%clk 0:00:07]}  f5 {[%clk 0:00:09]} 67. Kg5 {[%clk 0:00:07]}  f4 {[%clk 0:00:09]} 68. h5 {[%clk 0:00:08]}  Kg3 {[%clk 0:00:09]} 69. h6 {[%clk 0:00:08]}  f3 {[%clk 0:00:10]} 70. h7 {[%clk 0:00:09]}  f2 {[%clk 0:00:11]} 71. h8=Q {[%clk 0:00:10]}  f1=Q {[%clk 0:00:11]} 72. Qh4+ {[%clk 0:00:10]}  Kg2 {[%clk 0:00:12]} 73. Qg4+ {[%clk 0:00:11]}  Kf2 {[%clk 0:00:12]} 74. Qf4+ {[%clk 0:00:11]}  Ke1 {[%clk 0:00:13]} 75. Qxf1+ {[%clk 0:00:11]}  Kxf1 {[%clk 0:00:14]} 1/2-1/2


[Site "https://www.chess.com"]

[Event "Titled Tuesday Blitz May 2 Early 2023"]
[White "Djordjevic, Vuk"]
[Black "Jaskolka, Tomasz"]
[WhiteFideId "902098"]
[BlackFideId "1170791"]
[WhiteElo "2452"]
[BlackElo "2155"]
[Result "1-0"]
[Round "03"]
[TimeControl "180+2"]
[Date "2023.05.02"]
[WhiteClock "0:00:14"]
[BlackClock "0:00:08"]

1. d4 {[%clk 0:03:00]}  d5 {[%clk 0:03:00]} 2. Bf4 {[%clk 0:02:56]}  Nf6 {[%clk 0:02:52]} 3. e3 {[%clk 0:02:56]}  c5 {[%clk 0:02:47]} 4. c3 {[%clk 0:02:55]}  Nc6 {[%clk 0:02:40]} 5. Nd2 {[%clk 0:02:55]}  Qb6 {[%clk 0:02:29]} 6. Qb3 {[%clk 0:02:53]}  c4 {[%clk 0:02:28]} 7. Qxb6 {[%clk 0:02:53]}  axb6 {[%clk 0:02:28]} 8. a3 {[%clk 0:02:53]}  b5 {[%clk 0:02:26]} 9. Rc1 {[%clk 0:02:52]}  h6 {[%clk 0:02:24]} 10. Be2 {[%clk 0:02:37]}  Bf5 {[%clk 0:02:24]} 11. Ngf3 {[%clk 0:02:35]}  e6 {[%clk 0:02:24]} 12. Ne5 {[%clk 0:02:35]}  Nxe5 {[%clk 0:02:23]} 13. Bxe5 {[%clk 0:02:34]}  Nd7 {[%clk 0:02:20]} 14. Bc7 {[%clk 0:02:31]}  f6 {[%clk 0:02:15]} 15. g4 {[%clk 0:02:13]}  Bh7 {[%clk 0:02:13]} 16. Bg3 {[%clk 0:02:14]}  Kf7 {[%clk 0:02:13]} 17. h4 {[%clk 0:02:10]}  Be7 {[%clk 0:02:12]} 18. f4 {[%clk 0:02:08]}  Nb6 {[%clk 0:01:58]} 19. Bd1 {[%clk 0:02:05]}  Ra6 {[%clk 0:01:44]} 20. Bc2 {[%clk 0:02:03]}  Na4 {[%clk 0:01:43]} 21. Bxh7 {[%clk 0:02:03]}  Rxh7 {[%clk 0:01:44]} 22. Rc2 {[%clk 0:01:59]}  Ra8 {[%clk 0:01:42]} 23. e4 {[%clk 0:01:57]}  Bd6 {[%clk 0:01:21]} 24. e5 {[%clk 0:01:26]}  Be7 {[%clk 0:01:20]} 25. Nf3 {[%clk 0:01:10]}  Rhh8 {[%clk 0:00:51]} 26. f5 {[%clk 0:01:03]}  g6 {[%clk 0:00:46]} 27. exf6 {[%clk 0:00:48]}  Bxf6 {[%clk 0:00:47]} 28. fxe6+ {[%clk 0:00:38]}  Kxe6 {[%clk 0:00:45]} 29. O-O {[%clk 0:00:39]}  Rae8 {[%clk 0:00:40]} 30. Re2+ {[%clk 0:00:28]}  Kd7 {[%clk 0:00:41]} 31. Ne5+ {[%clk 0:00:24]}  Bxe5 {[%clk 0:00:41]} 32. Rf7+ {[%clk 0:00:14]}  Kc8 {[%clk 0:00:35]} 33. Bxe5 {[%clk 0:00:10]}  Rhf8 {[%clk 0:00:32]} 34. Rg7 {[%clk 0:00:09]}  Re6 {[%clk 0:00:26]} 35. Kg2 {[%clk 0:00:09]}  h5 {[%clk 0:00:24]} 36. gxh5 {[%clk 0:00:09]}  gxh5 {[%clk 0:00:25]} 37. Rg5 {[%clk 0:00:10]}  Kd7 {[%clk 0:00:22]} 38. Rxh5 {[%clk 0:00:10]}  Kc6 {[%clk 0:00:23]} 39. Rg5 {[%clk 0:00:10]}  Rh8 {[%clk 0:00:21]} 40. Kg3 {[%clk 0:00:06]}  Rh7 {[%clk 0:00:20]} 41. Rh2 {[%clk 0:00:06]}  Kd7 {[%clk 0:00:18]} 42. h5 {[%clk 0:00:07]}  Reh6 {[%clk 0:00:17]} 43. Kg4 {[%clk 0:00:06]}  Ke6 {[%clk 0:00:18]} 44. Bg7 {[%clk 0:00:06]}  Rxg7 {[%clk 0:00:10]} 45. Rxg7 {[%clk 0:00:06]}  Kf6 {[%clk 0:00:11]} 46. Rxb7 {[%clk 0:00:06]}  Rh8 {[%clk 0:00:09]} 47. Rxb5 {[%clk 0:00:07]}  Ke6 {[%clk 0:00:09]} 48. Ra5 {[%clk 0:00:07]}  Rg8+ {[%clk 0:00:10]} 49. Kh4 {[%clk 0:00:07]}  Nb6 {[%clk 0:00:10]} 50. Ra6 {[%clk 0:00:08]}  Rb8 {[%clk 0:00:10]} 51. h6 {[%clk 0:00:08]}  Kf5 {[%clk 0:00:11]} 52. h7 {[%clk 0:00:08]}  Nd7 {[%clk 0:00:12]} 53. Kg3 {[%clk 0:00:08]}  Rh8 {[%clk 0:00:10]} 54. Ra7 {[%clk 0:00:08]}  Nf6 {[%clk 0:00:10]} 55. Rf7 {[%clk 0:00:08]}  Kg6 {[%clk 0:00:11]} 56. Rxf6+ {[%clk 0:00:08]}  Kxf6 {[%clk 0:00:11]} 57. Kf3 {[%clk 0:00:09]}  Kf5 {[%clk 0:00:11]} 58. Ke3 {[%clk 0:00:09]}  Kg6 {[%clk 0:00:12]} 59. Kd2 {[%clk 0:00:09]}  Kg7 {[%clk 0:00:12]} 60. Kc2 {[%clk 0:00:09]}  Kf7 {[%clk 0:00:12]} 61. a4 {[%clk 0:00:09]}  Kg6 {[%clk 0:00:12]} 62. a5 {[%clk 0:00:09]}  Kg7 {[%clk 0:00:12]} 63. a6 {[%clk 0:00:10]}  Kg6 {[%clk 0:00:11]} 64. a7 {[%clk 0:00:10]}  Kg7 {[%clk 0:00:12]} 65. Rh3 {[%clk 0:00:11]}  Kg6 {[%clk 0:00:08]} 66. a8=Q {[%clk 0:00:11]}  Rxh7 {[%clk 0:00:09]} 67. Qg8+ {[%clk 0:00:10]}  Kf6 {[%clk 0:00:08]} 68. Rf3+ {[%clk 0:00:09]}  Ke7 {[%clk 0:00:07]} 69. Qg5+ {[%clk 0:00:10]}  Kd6 {[%clk 0:00:07]} 70. Rf6+ {[%clk 0:00:10]}  Kc7 {[%clk 0:00:07]} 71. Qe5+ {[%clk 0:00:10]}  Kc8 {[%clk 0:00:06]} 72. Qe6+ {[%clk 0:00:10]}  Kb8 {[%clk 0:00:07]} 73. Qb6+ {[%clk 0:00:10]}  Kc8 {[%clk 0:00:06]} 74. Rf8+ {[%clk 0:00:11]}  Kd7 {[%clk 0:00:06]} 75. Rd8+ {[%clk 0:00:11]}  Ke7 {[%clk 0:00:07]} 76. Qd6+ {[%clk 0:00:12]}  Kf7 {[%clk 0:00:08]} 77. Rf8+ {[%clk 0:00:13]}  Kg7 {[%clk 0:00:08]} 78. Qf6# {[%clk 0:00:14]} 1-0


[Site "https://www.chess.com"]